Cogmind - Beta 14 @@@ ROGUE MODE // 2024.08.31 @ 12:17:50 Player: Unit6544 Result: Destroyed by S-27 Virus with Autogun Performance ------------- Evolutions (1) 500 Regions Visited (6) 1200 Robots Destroyed (7) 35 Value Destroyed (146) 146 Prototype IDs (1) 20 Alien Tech Used (0) 0 Bonus (614) 614 TOTAL SCORE: 2515 Bonus ------- Follower Combat Kills 14 Met Imprinter 300 Was Imprinted 300 Cogmind --------- Core Integrity 0/400 Matter 275/300 Energy 160/160 System Corruption 0% Temperature Cool (0) Movement Flying (195) Ox2 Location -6/Proximity Caves Parts ------- > --- POWER (1) -------- Light Nuclear Core > --- PROPULSION (2) --- VTOL Module > --- UTILITY (4) ------ Transmission Jammer System Shield > --- WEAPON (2) ------- CR-A16's Pointy Stick > --- INVENTORY (5) ---- Tactical Coordination Suite Improved Reaction Control System Peak State ------------ > --- POWER ------------ Fusion Compressor > --- PROPULSION ------- Improved Hover Unit Gravmag System > --- UTILITY ---------- Signal Interpreter Transmission Jammer Makeshift ECM Suite Hacking Drone Bay > --- WEAPON ----------- Beamcaster CR-A16's Pointy Stick > --- INVENTORY -------- Improved Deuterium Engine Tactical Coordination Suite System Shield [Rating: 38] Favorites ----------- Power Improved Deuterium Engine Engine Improved Deuterium Engine Power Core Fusion Compressor Propulsion Gravmag System Wheel Wheel Hover Unit Gravmag System Flight Unit VTOL Module Utility Transmission Jammer Device Transmission Jammer Storage Small Storage Unit Processor Signal Interpreter Hackware System Shield Weapon CR-A16's Pointy Stick Energy Gun Beamcaster Piercing Weapon CR-A16's Pointy Stick Build | -11 -10 -10 -9 -9 -7 -6 ------- Run | Yrd Mat Min Mat Min Zio Pro Slots Evolved 2 | . . . 2 . . . Power . | . . . . . . . Propulsion . | . . . . . . . Utility 2 | . . . 2 . . . Weapon . | . . . . . . . Parts Attached 31 | 6 . 5 . 6 3 11 Power 9 | 3 . 1 . 1 . 4 Engine 6 | 3 . 1 . 1 . 1 Core 3 | . . . . . . 3 Reactor . | . . . . . . . Propulsion 12 | 2 . 2 . 3 1 4 Treads . | . . . . . . . Leg . | . . . . . . . Wheel 2 | 2 . . . . . . Hover 5 | . . . . 3 1 1 Flight 5 | . . 2 . . . 3 Utility 8 | 1 . 2 . 2 2 1 Device 4 | . . 1 . 1 2 . Storage 1 | 1 . . . . . . Processor 2 | . . 1 . 1 . . Hackware 1 | . . . . . . 1 Protection . | . . . . . . . Artifact . | . . . . . . . Weapon 2 | . . . . . . 2 Energy Gun 1 | . . . . . . 1 Energy Cannon . | . . . . . . . Ballistic Gun . | . . . . . . . Ballistic Cannon . | . . . . . . . Launcher . | . . . . . . . Special Weapon . | . . . . . . . Impact Weapon . | . . . . . . . Slashing Weapon . | . . . . . . . Piercing Weapon 1 | . . . . . . 1 Special Melee Weapon . | . . . . . . . Unidentified Prototypes 1 | . . . . . 1 . Parts Lost 9 | . . 1 . . . 8 Power 3 | . . 1 . . . 2 Propulsion 3 | . . . . . . 3 Utility 2 | . . . . . . 2 Weapon 1 | . . . . . . 1 Highest Loss Streak 6 | . . 1 . . . 6 To Critical Strikes . | . . . . . . . Average Slot Usage (%) 71 | . 14 46 55 59 75 77 Engine 10 | . 14 13 11 11 11 10 Hover 12 | . . . . 4 22 6 Flight 5 | . . 16 22 17 . 6 Device 27 | . . 2 11 11 31 32 Processor 7 | . . 13 11 15 11 . Energy Gun 3 | . . . . . . 10 Piercing Weapon 4 | . . . . . . 10 Peak Build Rating 38 | 2 1 5 5 14 28 38 Average Rating 24 | 1 1 3 5 7 26 32 On Entrance 7 | . 2 1 5 5 14 28 Naked Turns . | . . . . . . . Heaviest Build 28 | 10 3 4 4 11 20 28 Greatest Support 18 | 3 3 8 8 13 16 18 Greatest Overweight (x) 9 | 3 . . . . 1 9 Average Overweight (x) . | 2 . . . . . 3 Largest Inventory Capacity 8 | 8 5 5 5 5 5 5 Average Capacity 5 | 7 5 5 5 5 5 5 Most Carried 5 | 2 1 4 5 5 5 5 Average Carried 3 | . . 1 3 4 3 3 Final Capacity 8 | 8 5 5 5 5 5 5 Final Carried 5 | 1 . 1 4 5 4 2 Class Distribution -------------------- 74% | Infiltrator-Mutant 25% | Mutant Dominant Class ---------------- Mutant | -10/Materials Mutant | -10/Mines Mutant | -9/Materials Mutant | -9/Mines Infiltrator-Mutant | -7/Zion Infiltrator-Mutant | -6/Proximity Caves Resources | -11 -10 -10 -9 -9 -7 -6 ----------- Run | Yrd Mat Min Mat Min Zio Pro Matter Collected 446 | 90 . 20 . 119 157 60 Remotely . | . . . . . . . Salvage Created 145 | . . 20 . . . 125 Parts 13 | . . 1 . . . 12 Haulers Intercepted . | . . . . . . . Recyclers Shooed . | . . . . . . . Parts Field Recycled . | . . . . . . . Retrieved Matter . | . . . . . . . Parts Self-Destructed 9 | . . . . . . 9 Prevented . | . . . . . . . Kills | -11 -10 -10 -9 -9 -7 -6 ------- Run | Yrd Mat Min Mat Min Zio Pro Combat Hostiles Destroyed 7 | . . 1 . . . 6 Melee 4 | . . 1 . . . 3 Guns 3 | . . . . . . 3 Classes Destroyed 2 | . . 1 . . . 1 Drone 1 | . . . . . . 1 Swarmer 6 | . . 1 . . . 5 Best Kill Streak 2 | . . 1 . . . 2 Combat Bots Only 2 | . . 1 . . . 2 Max Kills in Single Turn 1 | . . 1 . . . 1 Gunslinging . | . . . . . . . Exploded . | . . . . . . . Melee 1 | . . 1 . . . 1 Uniques/NPCs Destroyed . | . . . . . . . Combat | -11 -10 -10 -9 -9 -7 -6 -------- Run | Yrd Mat Min Mat Min Zio Pro Hostile Shots Fired 123 | . 13 17 . . . 93 Missed 38 | . 5 7 . . . 26 Damage Taken 1162 | . 67 98 . . . 997 Core 505 | . 31 71 . . . 403 Absorbed by Shields . | . . . . . . . Regen/Repaired (Parts) 4 | . . . . . 4 . Core Remaining (%) 79 | 100 . 59 . . . . Volleys Fired 22 | . . . . . . 22 Largest 1 | . . . . . . 1 Hottest 75 | . . . . . . 75 Shots Fired 22 | . . . . . . 22 Gun 22 | . . . . . . 22 Cannon . | . . . . . . . Launcher . | . . . . . . . Special . | . . . . . . . Kinetic . | . . . . . . . Thermal 22 | . . . . . . 22 Explosive . | . . . . . . . Electromagnetic . | . . . . . . . Robot Hit Streak 3 | . . . . . . 3 Robot Miss Streak 5 | . . . . . . 5 Penetration Max . | . . . . . . . Secondary Targets . | . . . . . . . Shots Hit Robots 12 | . . . . . . 12 Core Hits 8 | . . 2 . . . 6 Critical Kills . | . . . . . . . Critical Parts Destroyed . | . . . . . . . Critical Strikes 3 | . . . . . . 3 Burn 3 | . . . . . . 3 Melee Attacks 14 | . . . . . . 14 Impact . | . . . . . . . Slashing . | . . . . . . . Piercing 14 | . . . . . . 14 Sneak Attacks . | . . . . . . . Combat Hostiles . | . . . . . . . Follow-up Attacks . | . . . . . . . Damage Inflicted 322 | . . 10 . . . 312 Guns 145 | . . . . . . 145 Cannons . | . . . . . . . Explosions . | . . . . . . . Melee 167 | . . . . . . 167 Ramming 10 | . . 10 . . . . Kinetic . | . . . . . . . Thermal 145 | . . . . . . 145 Explosive . | . . . . . . . Electromagnetic . | . . . . . . . Impact . | . . . . . . . Slashing . | . . . . . . . Piercing 167 | . . . . . . 167 Highest Corruption . | . . . . . . . Average Corruption . | . . . . . . . Corruption Purged . | . . . . . . . Corruption Blocked . | . . . . . . . Overload Shots . | . . . . . . . Overflow Damage 11 | . . . . . . 11 Projectiles . | . . . . . . . Explosions . | . . . . . . . Melee 11 | . . . . . . 11 Knockbacks . | . . . . . . . Impact . | . . . . . . . Kinetic . | . . . . . . . Secondary . | . . . . . . . Self-Inflicted Damage 5 | . . 5 . . . . Shots . | . . . . . . . Rammed 3 | . . 3 . . . . Targets Rammed 3 | . . 3 . . . . Kicked . | . . . . . . . Crushed . | . . . . . . . Highest Temperature 282 | . . . . . . 282 Average Temperature 78 | . . . . . . 78 Received Heat Transfer 6 | . 6 . . . . . Siege Activations . | . . . . . . . Robots Corrupted . | . . . . . . . Combat Hostiles . | . . . . . . . Parts Fried . | . . . . . . . Impact Corruptions . | . . . . . . . Robots Melted . | . . . . . . . Combat Hostiles . | . . . . . . . Parts Melted 2 | . . . . . . 2 Heat Transferred 481 | . . . . . . 481 Parts Sabotaged . | . . . . . . . Parts Stolen . | . . . . . . . Parts Stripped . | . . . . . . . Power Chain Reactions . | . . . . . . . Alert | -11 -10 -10 -9 -9 -7 -6 ------- Run | Yrd Mat Min Mat Min Zio Pro Peak Influence 160 | . 90 105 160 62 . . Initial 62 | . . 34 40 62 . . Average 57 | . 26 76 57 62 . . Maximum Alert Level . | . . . . . . . Low Security (%) 100 | 100 100 100 100 100 . . Level 1 . | . . . . . . . Level 2 . | . . . . . . . Level 3 . | . . . . . . . Level 4 . | . . . . . . . Level 5 . | . . . . . . . High Security . | . . . . . . . Max Security . | . . . . . . . Squads Dispatched 2 | . 1 . . 1 . . Investigation 1 | . . . . 1 . . Extermination . | . . . . . . . Reinforcement 1 | . 1 . . . . . Assault . | . . . . . . . Garrison . | . . . . . . . Intercept . | . . . . . . . Searches Triggered . | . . . . . . . Construction Impeded . | . . . . . . . Haulers Reinforced . | . . . . . . . Active Scanning Responses . | . . . . . . . Cargo Convoy Interrupts . | . . . . . . . Stealth | -11 -10 -10 -9 -9 -7 -6 --------- Run | Yrd Mat Min Mat Min Zio Pro Distress Signals 2 | . 1 . . . . 1 Communications Jammed 6 | . . . . . . 6 Distress Signals . | . . . . . . . Times Spotted 41 | . 8 6 3 . . 24 Peak Tracking Total 8 | . 8 3 3 . . 5 Tactical Retreats 4 | . 1 . 1 . . 2 Traps | -11 -10 -10 -9 -9 -7 -6 ------- Run | Yrd Mat Min Mat Min Zio Pro Traps Triggered . | . . . . . . . Indirectly . | . . . . . . . Trap Hack Attempts . | . . . . . . . Triggered . | . . . . . . . Disarmed . | . . . . . . . Reprogrammed . | . . . . . . . Reused . | . . . . . . . Traps Extracted . | . . . . . . . Installed . | . . . . . . . Triggered . | . . . . . . . Machines | -11 -10 -10 -9 -9 -7 -6 ---------- Run | Yrd Mat Min Mat Min Zio Pro Machines Disabled . | . . . . . . . Max in Single Turn . | . . . . . . . Machines Repaired . | . . . . . . . Machines Dismantled . | . . . . . . . Machines Sabotaged . | . . . . . . . Overloaded Fab Kills . | . . . . . . . Hacking | -11 -10 -10 -9 -9 -7 -6 --------- Run | Yrd Mat Min Mat Min Zio Pro Machines Accessed 2 | . . . 1 1 . . Terminals 1 | . . . 1 . . . Fabricators . | . . . . . . . Repair Stations . | . . . . . . . Recycling Units . | . . . . . . . Scanalyzers . | . . . . . . . Garrison Access . | . . . . . . . Total Hacks 3 | . . . 2 1 . . Successful 1 | . . . . 1 . . Failed 2 | . . . 2 . . . Catastrophic . | . . . . . . . Database Lockouts . | . . . . . . . Manual . | . . . . . . . Terminals 2 | . . . 2 . . . Fabricators . | . . . . . . . Repair Stations . | . . . . . . . Recycling Units . | . . . . . . . Scanalyzers . | . . . . . . . Garrison Access . | . . . . . . . Terminal Hacks 1 | . . . . 1 . . Open Door 1 | . . . . 1 . . Fabricator Hacks . | . . . . . . . Repair Station Hacks . | . . . . . . . Recycling Unit Hacks . | . . . . . . . Scanalyzer . | . . . . . . . Garrison Access Hacks . | . . . . . . . Unauthorized Hacks . | . . . . . . . Terminals . | . . . . . . . Fabricators . | . . . . . . . Repair Stations . | . . . . . . . Recycling Units . | . . . . . . . Scanalyzers . | . . . . . . . Garrison Access . | . . . . . . . Data Cores Recovered . | . . . . . . . Used . | . . . . . . . Hacking Detections 1 | . . . 1 . . . Full Trace Events . | . . . . . . . Feedback Events . | . . . . . . . Feedback Blocked . | . . . . . . . Robot Schematics Acquired . | . . . . . . . Robots Built . | . . . . . . . Authchips . | . . . . . . . Time . | . . . . . . . Total Robot Build Rating . | . . . . . . . Part Schematics Acquired . | . . . . . . . Parts Built . | . . . . . . . Authchips . | . . . . . . . Time . | . . . . . . . Total Part Build Rating . | . . . . . . . Parts Repaired . | . . . . . . . Time . | . . . . . . . Parts Recycled . | . . . . . . . Recycled Matter . | . . . . . . . Retrieved Matter . | . . . . . . . Retrieved Components . | . . . . . . . Parts Scanalyzed . | . . . . . . . Part Schematics Acquired . | . . . . . . . Parts Damaged . | . . . . . . . Bothacking | -11 -10 -10 -9 -9 -7 -6 ------------ Run | Yrd Mat Min Mat Min Zio Pro Used RIF Installer . | . . . . . . . Robots Hacked . | . . . . . . . Non-combat . | . . . . . . . Combat . | . . . . . . . Robot Hacks Applied . | . . . . . . . Relay Couplers Released . | . . . . . . . Fabnet Peak Effective % . | . . . . . . . Robots Rewired . | . . . . . . . Allies Hacked . | . . . . . . . Hacks Repelled . | . . . . . . . Allies | -11 -10 -10 -9 -9 -7 -6 -------- Run | Yrd Mat Min Mat Min Zio Pro Total Allies 7 | . . 3 . . 4 . Largest Group 4 | . . 3 . . 4 . Highest-Rated Group 150 | . . 40 . . 150 . Highest-Rated Ally 39 | . . 16 . . 39 . Total Orders . | . . . . . . . Ally Attacks 5 | . . 5 . . . . Total Damage 42 | . . 42 . . . . Kills 2 | . . 2 . . . . Allies Corrupted . | . . . . . . . Allies Melted . | . . . . . . . Intel | -11 -10 -10 -9 -9 -7 -6 ------- Run | Yrd Mat Min Mat Min Zio Pro Robot Analysis Total . | . . . . . . . Derelict Logs Recovered 3 | . . 1 . . 2 . Drone Launches 1 | . . . . . 1 . Drone Recoveries 1 | . . . . . . 1 Exploration | -11 -10 -10 -9 -9 -7 -6 ------------- Run | Yrd Mat Min Mat Min Zio Pro Turns Passed 2928 | 57 62 249 89 97 1294 1080 Spaces Moved 2712 | 30 121 568 223 213 1235 322 Core 377 | 30 121 193 . . . 33 Treads . | . . . . . . . Legs . | . . . . . . . Wheels . | . . . . . . . Hover 1416 | . . . . 23 1235 158 Flight 919 | . . 375 223 190 . 131 Fastest Speed 37 | 50 50 37 37 37 56 100 Average Speed 101 | 151 50 41 37 39 103 301 Slowest Speed 515 | 200 50 50 37 56 116 515 Overloaded Moves . | . . . . . . . Propulsion Burnouts . | . . . . . . . Robots Hopped 5 | . . 3 2 . . . Cave-ins Triggered . | . . . . . . . Exploration Rate (%) 46 | 3 37 98 18 49 92 25 Regions Visited 6 Branch Regions 4 Pre-discovered Areas 3 | . . . . . 3 . Known Exits Taken 3 | . . 1 1 . 1 . Unknown Exits Taken 3 | 1 1 . . 1 . . Scrap Searched 8 | . . 1 . 2 3 2 Spaces Dug . | . . . . . . . Terrain Destroyed . | . . . . . . . Melee . | . . . . . . . Projectile . | . . . . . . . AOE . | . . . . . . . Terrain Rammed . | . . . . . . . Walls Destroyed . | . . . . . . . Machines Disabled . | . . . . . . . Actions | -11 -10 -10 -9 -9 -7 -6 --------- Run | Yrd Mat Min Mat Min Zio Pro Total 2836 | 44 122 578 227 226 1255 384 Wait . | . . . . . . . Move 2696 | 29 120 561 218 212 1234 322 Hop 5 | . . 3 2 . . . Pick Up 39 | 5 . 6 5 5 9 9 Fast Attach . | . . . . . . . Attach 28 | 6 . 5 . 4 3 10 Detach 3 | 2 . . . . . 1 Swap 3 | . . . . 2 . 1 Drop 23 | 2 2 . 2 3 9 5 Fire 22 | . . . . . . 22 Melee 14 | . . . . . . 14 Ram 3 | . . 3 . . . . Kick . | . . . . . . . Crush . | . . . . . . . Escape Stasis . | . . . . . . . Rewire . | . . . . . . . Trap . | . . . . . . . Miscellaneous . | . . . . . . . Route ------- -11/Scrapyard -10/Materials -10/Mines (discovered 2 exits: *Mat x2) -9/Materials (discovered 3 exits: *Min x2 / *Sto) -9/Mines (discovered 2 exits: *Mat / [*Zio]) -7/Zion -6/Proximity Caves History --------- Turn | Location | Event 29 | -11/Scrapyard | Discovered new exit (range 16) 58 | -11/Scrapyard | Entered Materials 112 | -10/Materials | Discovered new exit (range 9) 120 | -10/Materials | Entered Mines 122 | -10/Mines | Assisted by bots powering up and referring to "LRC-V3" 132 | -10/Mines | Discovered new exit (range 8) 307 | -10/Mines | Build established: Mutant 365 | -10/Mines | Discovered new exit (range 8) 368 | -10/Mines | Identified exit to Materials 369 | -10/Mines | Entered Materials 369 | -9/Materials | Evolved 2 slots: Utility x2 370 | -9/Materials | Identified exit to Mines 417 | -9/Materials | Discovered new exit (range 10) 420 | -9/Materials | Identified exit to Storage 458 | -9/Materials | Entered Mines 468 | -9/Mines | Discovered new exit (range 14) 473 | -9/Mines | Identified exit to Materials 528 | -9/Mines | Met a Derelict shopkeep closing up shop 553 | -9/Mines | A Derelict revealed a hidden shortcut to a safe place 555 | -9/Mines | Entered Zion 592 | -7/Zion | Given the Hacking Drone Bay 592 | -7/Zion | Found Prototype Device 593 | -7/Zion | Identified Hacking Drone Bay 656 | -7/Zion | Learned location of Armory (-4) 660 | -7/Zion | Learned Factory terminal intel 883 | -7/Zion | Met Imprinter 919 | -7/Zion | Imprinted 921 | -7/Zion | Declared Zion's savior 1020 | -7/Zion | Build established: Infiltrator-Mutant 1356 | -7/Zion | Found CR-A16's Pointy Stick 1389 | -7/Zion | Given A8's code to call for help 1683 | -7/Zion | Discovered new exit (range 22) 1705 | -7/Zion | Identified exit to Proximity Caves 1849 | -7/Zion | Entered Proximity Caves 1849 | -6/Proximity Caves | Accompanied by 1 ally 1859 | -6/Proximity Caves | Spotter reported a threat 1860 | -6/Proximity Caves | Spotter reported a threat 1995 | -6/Proximity Caves | Spotter reported a threat 2000 | -6/Proximity Caves | Spotter reported a threat 2244 | -6/Proximity Caves | Spotter reported a threat 2409 | -6/Proximity Caves | Spotter reported a threat 2787 | -6/Proximity Caves | Spotter reported a threat 2862 | -6/Proximity Caves | Core integrity fell below 50% 2884 | -6/Proximity Caves | Core integrity fell below 20% 2918 | -6/Proximity Caves | Lost 6 parts (2p1n2u1w) 2929 | -6/Proximity Caves | Destroyed by S-27 Virus with Autogun Last Messages --------------- N-01 Spotter is scanning... N-01 Spotter signal jammed. ALERT: Unidentified potential threat approaching Complex 0b10. C-30 ARC bursts open, deploying its payload. S-27 Virus unfolds itself. S-27 Virus suffers critical hit (Burn). Imp. Deuterium Engine destroyed. VTOL Module destroyed. Beamcaster destroyed. Fusion Compressor destroyed. Hacking Drone Bay destroyed. Destroyed Lgt. Nuclear Core. S-27 Virus destroyed. Mak. ECM Suite destroyed. Autogun fries itself beyond repair. S-27 Virus destroyed. Acquired Lgt. Nuclear Core. Autogun fries itself beyond repair. Acquired VTOL Module. Map ----- +----------------------------------------------------+ | # ##??????????????????????????????????????????? | | # ##?????????????????????????????????????????? | | # #?????????????????????????????????????????? | | # ## #????????????????????????????????????????? | | # ### ##???????? ??????????????????????????????? | | #?##???????? ??????????????????????????????? | | #?####?????? ??????????????????????????????? | | ### ##????? ??????????????????????????????? | | ## #????? #?????????????????????????????? | | #??????# ##???????????????????????????? | | ##??????# #???????????????????????????? | | #???????# ##??????????????????????????? | | #####???? ##?????????????????????????? | | ### ## ##??? #?????????????????????????? | | ###### #???? ##????????????????????????? | | ???## % ##???? ##???????????????????????? | | ??## ####### #???????????????????????? | | ?## ####????????????????????? | | ## #### ?????????????? | | ###### "%" ?????????????? | | # ###### $ ## $ ?????????????? | | ## ##???????????????????????? | | ?## ###????????????????????????? | | #### ####% ###??????????????????????????? | | #### % ##??## ########?????????????????????? | | ####% #????#% @s#?????????????????????? | | ## ##???# #### #?????????????????????? | | ##??# #??# #?????????????????????? | | #??## #??# #?????????????????????? | | #???####??# #?????????????????????? | | ## ########?????????# #?????????????????????? | | ?#######????????????????# #?????????????????????? | | ????????????????????????# #?????????????????????? | | ????????????????????????# #?????????????????????? | | ?????????????????????????# ?????????????????????? | | ?????????????????????????? ?????????????????????? | | ?????????????????????????? ?????????????????????? | | ?????????????????????????? ?????????????????????? | | ??????????????????????????##?????????????????????? | | ?????????????????????????????????????????????????? | | ?????????????????????????????????????????????????? | | ?????????????????????????????????????????????????? | | ?????????????????????????????????????????????????? | | ?????????????????????????????????????????????????? | | ?????????????????????????????????????????????????? | | ?????????????????????????????????????????????????? | | ?????????????????????????????????????????????????? | | ?????????????????????????????????????????????????? | | ?????????????????????????????????????????????????? | | ?????????????????????????????????????????????????? | +----------------------------------------------------+ Best States ------------- Heat Dissipation 28 Energy Generation 16 Energy Capacity 290 Matter Stores 300 Matter Capacity 300 Sight Range 18 Terrain Scan Density 10 ECM Strength 2 Jamming Range 12 Evasion (%) 62 Defensive Hacking 10 Item Schematics ----------------- None Robot Schematics ------------------ None Fabricated ------------ Nothing Alien Tech Used ----------------- None Achievements -------------- Fist Fight Robot Respite The One Challenges ------------ None Game ------ Seed MicrowarpLightFlakker Manual? 0 Play Time 00:39:44 Cumulative 3.6 hours Start 2024.08.31 @ 11:35:10 End 2024.08.31 @ 12:17:50 Sessions 1 Manual Loads 0 Difficulty Rogue Special Mode None Game No. 12 Rogue 12 Adventurer 0 Explorer 0 Win Type - Total 0 Types 0/0/0/0/0/0/0/0/0 Lore% 2 Gallery% 8 Achievement% 9 Wizard Run 0 Options --------- Layout 1 ASCII 0 Keyboard 0 Movement Mouse Keybinds 0 Fullscreen 1 Font 24/Smallcaps Map View 50x40 Zoom Use 0% Tactical HUD 0 Map Filters NONE Filters NONE Steam 1 RUN: ecdcf5e2-5313-4a64-95ed-e29610556d23